Cogmind - Beta 16 @@@ ROGUE MODE // 2025.12.26 @ 03:05:21 Player: theogungabunga Result: Destroyed by G-34 Mercenary with Small Laser Performance ------------- Evolutions (0) 0 Regions Visited (2) 400 Robots Destroyed (9) 45 Value Destroyed (260) 260 Prototype IDs (2) 40 Alien Tech Used (0) 0 Bonus (0) 0 TOTAL SCORE: 745 Bonus ------- None Cogmind --------- Core Integrity 0/250 Matter 300/300 Energy 250/250 System Corruption 0% Temperature Cool (6) Movement Walking (120) Location -10/Mines Parts ------- > --- POWER (1) -------- Ion Engine > --- PROPULSION (2) --- Aluminum Leg > --- UTILITY (2) ------ Scrap Suit > --- WEAPON (2) ------- Small Laser > --- INVENTORY (5) ---- Ion Engine Flight Unit Flight Unit Peak State ------------ > --- POWER ------------ Ion Engine > --- PROPULSION ------- Aluminum Leg Aluminum Leg > --- UTILITY ---------- Scrap Suit > --- WEAPON ----------- Small Laser Light Assault Rifle > --- INVENTORY -------- Ion Engine Flight Unit Flight Unit [Rating: 13] Favorites ----------- Power Ion Engine Engine Ion Engine Propulsion Aluminum Leg Leg Aluminum Leg Flight Unit Flight Unit Utility Small Storage Unit Device Scrap Suit Storage Small Storage Unit Protection Power Shielding Weapon Light Assault Rifle Energy Gun Small Laser Ballistic Gun Light Assault Rifle Build | -11 -10 -10 ------- Run | Yrd Mat Min Slots Evolved . | . . . Power . | . . . Propulsion . | . . . Utility . | . . . Weapon . | . . . Parts Attached 16 | 5 4 7 Power 2 | 1 1 . Engine 2 | 1 1 . Core . | . . . Reactor . | . . . Propulsion 6 | 2 . 4 Treads . | . . . Leg 4 | 2 . 2 Wheel . | . . . Hover . | . . . Flight 2 | . . 2 Utility 5 | . 3 2 Device 2 | . 1 1 Storage 1 | . 1 . Processor . | . . . Hackware . | . . . Protection 2 | . 1 1 Artifact . | . . . Weapon 3 | 2 . 1 Energy Gun 2 | 1 . 1 Energy Cannon . | . . . Ballistic Gun 1 | 1 . . Ballistic Cannon . | . . . Launcher . | . . . Special Weapon . | . . . Impact Weapon . | . . . Slashing Weapon . | . . . Piercing Weapon . | . . . Special Melee Weapon . | . . . Unidentified Prototypes . | . . . Parts Lost 5 | . 2 3 Power 1 | . 1 . Propulsion 1 | . . 1 Utility 1 | . 1 . Weapon 2 | . . 2 Highest Loss Streak 1 | . 1 1 To Critical Strikes . | . . . Average Backups 4 | 2 3 5 Power . | . 1 1 Propulsion 1 | . . 2 Utility . | . . . Weapon . | . 1 . Tool/Special . | . . . Unused Backups 3 | . . 3 Power 1 | . . 1 Propulsion 1 | . . 1 Utility . | . . . Weapon . | . . . Tool/Special 1 | . . 1 Average Slot Usage (%) 84 | . 89 75 Engine 13 | . 12 14 Leg 21 | . 28 13 Flight 2 | . . 6 Device 3 | . 1 7 Storage 9 | . 11 7 Protection 4 | . 6 2 Energy Gun 13 | . 14 11 Ballistic Gun 13 | . 14 13 Peak Build Rating 13 | 5 7 13 Average Rating 7 | 3 6 8 On Entrance 4 | . 5 7 Avg Prop Armor Cover (%) . | . . . Naked Turns . | . . . Heaviest Build 13 | 5 13 13 Greatest Support 20 | 20 20 20 Greatest Overweight (x) 4 | . . 4 Average Overweight (x) . | . . . Largest Inventory Capacity 8 | 5 8 8 Average Capacity 6 | 5 7 6 Most Carried 8 | 5 6 8 Average Carried 4 | 2 3 5 Final Capacity 8 | 5 8 5 Final Carried 6 | 3 6 3 Scrap Suit Usage (%) 18 | . . 48 Class Distribution -------------------- 75% | Mutant 24% | Scrapper Dominant Class ---------------- Mutant | -10/Materials Scrapper | -10/Mines Resources | -11 -10 -10 ----------- Run | Yrd Mat Min Matter Collected 405 | 173 145 87 Remotely . | . . . Salvage Created 288 | . 232 56 Parts 16 | . 12 4 Haulers Intercepted . | . . . Recyclers Shooed . | . . . Parts Field Recycled . | . . . Retrieved Matter . | . . . Parts Self-Destructed . | . . . Prevented . | . . . Parts Restored . | . . . Kills | -11 -10 -10 ------- Run | Yrd Mat Min Combat Hostiles Destroyed 10 | . 6 4 Guns 10 | . 6 4 Classes Destroyed 3 | . 1 2 Swarmer 3 | . . 3 Grunt 6 | . 6 . Assembled 1 | . . 1 Best Kill Streak 5 | . 5 3 Combat Bots Only 5 | . 5 3 Max Kills in Single Turn 1 | . 1 1 Gunslinging . | . . . Exploded . | . . . Melee . | . . . Uniques/NPCs Destroyed . | . . . Combat | -11 -10 -10 -------- Run | Yrd Mat Min Hostile Shots Fired 81 | . 48 33 Missed 25 | . 17 8 Hits 56 | . 31 25 Projectile 56 | . 31 25 AOE 5 | . . 5 Damage Taken 911 | . 414 497 Core 261 | . 84 177 Absorbed by Shields . | . . . Redirected to Shielding 6 | . 3 3 Core Remaining (%) 100 | 100 . . Volleys Fired 42 | . 28 14 Largest 2 | . 2 2 Hottest 60 | . 60 60 Shots Fired 80 | . 56 24 Gun 80 | . 56 24 Cannon . | . . . Launcher . | . . . Special . | . . . Kinetic 42 | . 28 14 Thermal 38 | . 28 10 Explosive . | . . . Electromagnetic . | . . . Robot Hit Streak 9 | . 8 9 Robot Miss Streak 4 | . 4 3 Penetration Max . | . . . Secondary Targets 2 | . 1 1 Max Gunslinging Chain 1 | . 1 1 Shots Hit Robots 52 | . 40 12 Core Hits 24 | . 16 8 Critical Kills . | . . . Critical Parts Destroyed . | . . . Critical Strikes . | . . . Melee Attacks . | . . . Impact . | . . . Slashing . | . . . Piercing . | . . . Sneak Attacks . | . . . Combat Hostiles . | . . . Follow-up Attacks . | . . . Damage Inflicted 485 | . 364 121 Guns 480 | . 364 116 Cannons . | . . . Explosions . | . . . Melee . | . . . Ramming 5 | . . 5 Kinetic 223 | . 160 63 Thermal 257 | . 204 53 Explosive . | . . . Electromagnetic . | . . . Impact . | . . . Slashing . | . . . Piercing . | . . . Highest Corruption . | . . . Average Corruption . | . . . Corruption Purged . | . . . Corruption Blocked . | . . . Overload Shots . | . . . Overflow Damage . | . . . Projectiles . | . . . Explosions . | . . . Melee . | . . . Knockbacks . | . . . Impact . | . . . Kinetic . | . . . Secondary . | . . . Self-Inflicted Damage . | . . . Shots . | . . . Rammed . | . . . Targets Rammed 1 | . . 1 Kicked 1 | . . 1 Crushed . | . . . Highest Temperature 285 | . 285 50 Average Temperature 122 | . 159 20 Received Heat Transfer 282 | . 231 51 Siege Activations . | . . . Martial Activations . | . . . Shielding Activations . | . . . Robots Disrupted . | . . . Combat Hostiles . | . . . Robots Corrupted . | . . . Combat Hostiles . | . . . Parts Fried . | . . . Impact Corruptions . | . . . Robots Melted . | . . . Combat Hostiles . | . . . Parts Melted 1 | . 1 . Heat Transferred 600 | . 475 125 Parts Sabotaged . | . . . Parts Stolen . | . . . Parts Stripped . | . . . Power Chain Reactions . | . . . Alert | -11 -10 -10 ------- Run | Yrd Mat Min Maximum Alert Level . | . . . Low Security (%) 100 | 100 100 100 Level 1 . | . . . Level 2 . | . . . Level 3 . | . . . Level 4 . | . . . Level 5 . | . . . High Security . | . . . Max Security . | . . . Peak Influence 120 | . 120 100 Initial 30 | . . 30 Average 44 | . 50 47 Influence Increases 244 | . 174 70 Destroy 0b10 Robot/C 180 | . 120 60 Destroy Leader 40 | . 30 10 Successful Hack 24 | . 24 . Influence Decreases 244 | . 95 149 Entered New Map 49 | . . 49 Time Decay 165 | . 85 80 Lost Part 30 | . 10 20 Squads Dispatched 1 | . 1 . Investigation . | . . . Extermination . | . . . Reinforcement 1 | . 1 . Assault . | . . . Garrison . | . . . Intercept . | . . . Searches Triggered . | . . . Construction Impeded . | . . . Haulers Reinforced . | . . . Active Scanning Responses . | . . . Cargo Convoy Interrupts . | . . . Stealth | -11 -10 -10 --------- Run | Yrd Mat Min Distress Signals 2 | . 2 . Communications Jammed . | . . . Distress Signals . | . . . Times Spotted 19 | . 11 8 Peak Tracking Total 6 | . 6 2 Tactical Retreats 1 | . . 1 Traps | -11 -10 -10 ------- Run | Yrd Mat Min Traps Triggered . | . . . Indirectly . | . . . Trap Hack Attempts . | . . . Triggered . | . . . Disarmed 6 | . 6 . Reprogrammed . | . . . Reused . | . . . Traps Extracted . | . . . Installed . | . . . Triggered . | . . . Machines | -11 -10 -10 ---------- Run | Yrd Mat Min Machines Disabled . | . . . Max in Single Turn . | . . . Machines Repaired . | . . . Machines Dismantled . | . . . Machines Sabotaged . | . . . Overloaded Fab Kills . | . . . Hacking | -11 -10 -10 --------- Run | Yrd Mat Min Machines Accessed 3 | . 3 . Terminals 3 | . 3 . Fabricators . | . . . Repair Stations . | . . . Recycling Units . | . . . Scanalyzers . | . . . Garrison Access . | . . . Total Hacks 6 | . 6 . Successful 5 | . 5 . Failed 1 | . 1 . Catastrophic . | . . . Database Lockouts . | . . . Manual . | . . . Terminals 6 | . 6 . Fabricators . | . . . Repair Stations . | . . . Recycling Units . | . . . Scanalyzers . | . . . Garrison Access . | . . . Terminal Hacks 5 | . 5 . Record 1 | . 1 . Prototype ID Bank 1 | . 1 . Disarm Traps 1 | . 1 . Hauler Manifests 1 | . 1 . Zone Layout 1 | . 1 . Fabricator Hacks . | . . . Repair Station Hacks . | . . . Recycling Unit Hacks . | . . . Scanalyzer . | . . . Garrison Access Hacks . | . . . Unauthorized Hacks . | . . . Terminals . | . . . Fabricators . | . . . Repair Stations . | . . . Recycling Units . | . . . Scanalyzers . | . . . Garrison Access . | . . . Data Cores Recovered . | . . . Used . | . . . Hacking Detections 3 | . 3 . Full Trace Events . | . . . Feedback Events . | . . . Feedback Blocked . | . . . Robot Schematics Acquired . | . . . Robots Built . | . . . Authchips . | . . . Time . | . . . Total Robot Build Rating . | . . . Part Schematics Acquired . | . . . Parts Built . | . . . Authchips . | . . . Time . | . . . Total Part Build Rating . | . . . Part Studies Acquired . | . . . Parts Repaired . | . . . Time . | . . . Parts Recycled . | . . . Recycled Matter . | . . . Retrieved Matter . | . . . Retrieved Components . | . . . Parts Scanalyzed . | . . . Part Schematics Acquired . | . . . Parts Damaged . | . . . Bothacking | -11 -10 -10 ------------ Run | Yrd Mat Min Used RIF Installer . | . . . Robots Hacked . | . . . Non-combat . | . . . Combat . | . . . Robot Hacks Applied . | . . . Relay Couplers Released . | . . . Fabnet Peak Effective % . | . . . Robots Rewired . | . . . Allies Hacked . | . . . Hacks Repelled . | . . . Allies | -11 -10 -10 -------- Run | Yrd Mat Min Total Allies . | . . . Largest Group . | . . . Highest-Rated Group . | . . . Highest-Rated Ally . | . . . Total Orders . | . . . Ally Attacks . | . . . Total Damage . | . . . Kills . | . . . Allies Corrupted . | . . . Allies Melted . | . . . Intel | -11 -10 -10 ------- Run | Yrd Mat Min Active Infowar (turns) 32 | . 32 . Seismic 32 | . 32 . Robot Analysis Total . | . . . Derelict Logs Recovered . | . . . Drone Launches . | . . . Drone Recoveries . | . . . Exploration | -11 -10 -10 ------------- Run | Yrd Mat Min Turns Passed 474 | 47 251 176 Spaces Moved 246 | 34 134 78 Core 13 | 9 . 4 Treads . | . . . Legs 221 | 25 134 62 Wheels . | . . . Hover . | . . . Flight 12 | . . 12 Fastest Speed 50 | 50 120 117 Average Speed 127 | 101 120 150 Slowest Speed 250 | 120 120 250 Overloaded Moves . | . . . Propulsion Burnouts . | . . . Robots Hopped . | . . . Potential Cave-ins 6 | . . 6 Cave-ins Triggered . | . . . Exploration Rate (%) 17 | 4 38 10 Regions Visited 2 Branch Regions 1 Pre-discovered Areas . | . . . Known Exits Taken . | . . . Unknown Exits Taken 2 | 1 1 . Scrap Searched . | . . . Spaces Dug . | . . . Terrain Destroyed . | . . . Melee . | . . . Projectile . | . . . AOE . | . . . Terrain Rammed . | . . . Walls Destroyed . | . . . Machines Disabled . | . . . Actions | -11 -10 -10 --------- Run | Yrd Mat Min Total 335 | 46 173 116 Wait 5 | . . 5 Move 244 | 33 133 78 Hop . | . . . Pick Up 19 | 8 7 4 Fast Attach 1 | . . 1 Attach 14 | 5 4 5 Detach 1 | . . 1 Swap 3 | . 1 2 Drop 5 | . . 5 Fire 42 | . 28 14 Melee . | . . . Ram . | . . . Kick 1 | . . 1 Crush . | . . . Escape Stasis . | . . . Rewire . | . . . Trap . | . . . Miscellaneous . | . . . Route ------- -11/Scrapyard -10/Materials -10/Mines History --------- Turn | Location | Event 3 | -11/Scrapyard | Discovered new exit (range 16) 48 | -11/Scrapyard | Entered Materials 213 | -10/Materials | Discovered new exit (range 12) 299 | -10/Materials | Entered Mines 300 | -10/Mines | Assembled infested the area 353 | -10/Mines | Build established: Mutant 384 | -10/Mines | Found a Scrap Suit stashed away for nefarious purposes 387 | -10/Mines | Found Scrap Suit 395 | -10/Mines | Core integrity fell below 50% 405 | -10/Mines | Core integrity fell below 20% 475 | -10/Mines | Destroyed by G-34 Mercenary with Small Laser Last Messages --------------- U-05 Engineer lays Concrete. Dropped Weapon Shielding. U-05 Engineer lays Concrete. Dropped Sml. Storage Unit. R-06 Scavenger destroyed. Acquired 22 matter. Aluminum Leg destroyed. D-53 Grenadier destroyed. The unstable cave ceiling collapses. U-05 Engineer builds a Wall. U-05 Engineer lays Concrete. U-05 Engineer builds a Wall. The unstable cave ceiling collapses. U-05 Engineer builds a Wall. U-05 Engineer lays Concrete. Kicked U-05 Engineer. U-05 Engineer builds a Wall. The unstable cave ceiling collapses. U-05 Engineer builds a Wall. Lgt. Assault Rifle destroyed. Map ----- +----------------------------------------------------+ | ?????????????????????????????????????????????????? | | ?????????????????????????????????????????????????? | | ?????????????????????????????????????????????????? | | ?????????????????????????????????????????????????? | | ?????????????????????????????????????????????????? | | ?????????????????????????????????????????????????? | | ?????????????????????????????????????????????????? | | ?????????????????????????????????????????????????? | | ???????????????????????####??????????????????????? | | ???#####??????#######?## ##?????????????????????? | | ???? ?????## ### #?????????????????????? | | ?????# ###### ## ## ##????????????????????? | | ?????# ## # " #?????"??????????????? | | ?????# ###??"???????????????? | | ?????### ## # # #? ????????????????? | | ???????# =%* ## # # # ?????????????????? | | ??????## = ### # # #?????????????? | | ??????# %= % ### # # # ##?????????????? | | ?????# ####### ##%# #? ###??????????????? | | ?????## ##??## # # #??? #????????????????? | | ?????## ##?### # # # #????????????????????? | | ?????# #?# ## #%# #???????????????????? | | ?????# ! ##?# #### # ##???????????????????? | | ?????###!!= ### ###????????????????????? | | ??????# "%$ ######??????????????????????? | | ??????## ## # # #g@#??????????????????????? | | ???????# ### # #??????????????????????? | | ???????######?#?# # ##??????????????????????? | | ????????????????#### #####???????????????????????? | | ???????????????????##????????????????????????????? | | ?????????????????????????????????????????????????? | | ?????????????????????????????????????????????????? | | ?????????????????????????????????????????????????? | | ?????????????????????????????????????????????????? | | ?????????????????????????????????????????????????? | | ?????????????????????????????????????????????????? | | ?????????????????????????????????????????????????? | | ?????????????????????????????????????????????????? | | ?????????????????????????????????????????????????? | | ?????????????????????????????????????????????????? | | ?????????????????????????????????????????????????? | | ?????????????????????????????????????????????????? | | ?????????????????????????????????????????????????? | | ?????????????????????????????????????????????????? | | ?????????????????????????????????????????????????? | | ?????????????????????????????????????????????????? | | ?????????????????????????????????????????????????? | | ?????????????????????????????????????????????????? | | ?????????????????????????????????????????????????? | | ?????????????????????????????????????????????????? | +----------------------------------------------------+ Best States ------------- Heat Dissipation 25 Energy Generation 10 Energy Capacity 250 Matter Stores 300 Matter Capacity 300 Sight Range 16 Terrain Scan Density 10 Power Shielding 33 Evasion (%) 55 Item Schematics ----------------- None Robot Schematics ------------------ None Fabricated ------------ Nothing Repaired ---------- Nothing Studied --------- None Alien Tech Used ----------------- None Achievements -------------- None Challenges ------------ None Game ------ Seed ActuatorPhasingBeam Manual? 0 Play Time 00:09:46 Cumulative 5.8 hours Start 2025.12.26 @ 02:54:28 End 2025.12.26 @ 03:05:21 Sessions 1 Manual Loads 0 Difficulty Rogue Special Mode None Game No. 14 Rogue 14 Adventurer 0 Explorer 0 Win Type - Total 0 Types 0/0/0/0/0/0/0/0/0/0 Lore% 4 Gallery% 10 Achievement% 7 Wizard Run 0 Options --------- Layout 1 ASCII 0 Keyboard 0 Movement Mouse Keybinds 0 Fullscreen 0 Font 20/SmallcapsGlow Map View 50x35 Zoom Use 0% Tactical HUD 0 Map Filters NONE Filters NONE Steam 1 RUN: b457d265-79fa-4441-ba18-c9dcdb0971e9